Cogmind - Beta 16 @@@ ROGUE MODE // 2026.01.18 @ 02:12:31 Player: Marcie Result: Destroyed by G-34 Mercenary with Small Laser Performance ------------- Evolutions (0) 0 Regions Visited (1) 200 Robots Destroyed (12) 60 Value Destroyed (353) 353 Prototype IDs (0) 0 Alien Tech Used (0) 0 Bonus (0) 0 TOTAL SCORE: 613 Bonus ------- None Cogmind --------- Core Integrity 0/250 Matter 276/300 Energy 85/100 System Corruption 0% Temperature Cool (6) Movement Core (50) Location -10/Materials Parts ------- > --- POWER (1) -------- (None) > --- PROPULSION (2) --- (None) > --- UTILITY (2) ------ Signal Interpreter > --- WEAPON (2) ------- Small Laser > --- INVENTORY (5) ---- Wheel Grenade Launcher Peak State ------------ > --- POWER ------------ Light Ion Engine > --- PROPULSION ------- Wheel Wheel > --- UTILITY ---------- Medium Matter Pod Sensor Array > --- WEAPON ----------- EM Pulse Gun Medium Laser > --- INVENTORY -------- Aluminum Leg Aluminum Leg Assault Rifle Grenade Launcher [Rating: 7] Favorites ----------- Power Light Ion Engine Engine Light Ion Engine Propulsion Wheel Leg Aluminum Leg Wheel Wheel Utility Signal Interpreter Device Sensor Array Storage Medium Matter Pod Processor Signal Interpreter Weapon Medium Laser Energy Gun Medium Laser Ballistic Gun Assault Rifle Build | -11 -10 ------- Run | Yrd Mat Slots Evolved . | . . Power . | . . Propulsion . | . . Utility . | . . Weapon . | . . Parts Attached 12 | 5 7 Power 1 | 1 . Engine 1 | 1 . Core . | . . Reactor . | . . Propulsion 4 | 2 2 Treads . | . . Leg 2 | . 2 Wheel 2 | 2 . Hover . | . . Flight . | . . Utility 3 | . 3 Device 1 | . 1 Storage 1 | . 1 Processor 1 | . 1 Hackware . | . . Protection . | . . Artifact . | . . Weapon 4 | 2 2 Energy Gun 3 | 2 1 Energy Cannon . | . . Ballistic Gun 1 | . 1 Ballistic Cannon . | . . Launcher . | . . Special Weapon . | . . Impact Weapon . | . . Slashing Weapon . | . . Piercing Weapon . | . . Special Melee Weapon . | . . Unidentified Prototypes . | . . Parts Lost 8 | . 8 Power 1 | . 1 Propulsion 3 | . 3 Utility 1 | . 1 Weapon 3 | . 3 Highest Loss Streak 5 | . 5 To Critical Strikes . | . . Average Backups 3 | 2 3 Power . | . . Propulsion 1 | 1 1 Utility . | . . Weapon 1 | . 1 Tool/Special . | . . Unused Backups 2 | . 2 Power . | . . Propulsion . | . . Utility . | . . Weapon 2 | . 2 Tool/Special . | . . Average Slot Usage (%) 84 | . 84 Engine 14 | . 14 Leg 9 | . 9 Wheel 14 | . 14 Device 9 | . 9 Processor 10 | . 10 Energy Gun 22 | . 22 Ballistic Gun 2 | . 2 Peak Build Rating 7 | 5 7 Average Rating 5 | 4 5 On Entrance 2 | . 5 Avg Prop Armor Cover (%) . | . . Naked Turns . | . . Heaviest Build 10 | 7 10 Greatest Support 20 | 20 20 Greatest Overweight (x) 1 | . 1 Average Overweight (x) . | . . Largest Inventory Capacity 5 | 5 5 Average Capacity 5 | 5 5 Most Carried 5 | 4 5 Average Carried 3 | 2 3 Final Capacity 5 | 5 5 Final Carried 4 | 4 2 Class Distribution -------------------- 100% | Mutant Dominant Class ---------------- Mutant | -10/Materials Resources | -11 -10 ----------- Run | Yrd Mat Matter Collected 423 | 250 173 Remotely . | . . Salvage Created 413 | 48 365 Parts 22 | 1 21 Haulers Intercepted . | . . Recyclers Shooed 3 | . 3 Parts Field Recycled . | . . Retrieved Matter . | . . Parts Self-Destructed . | . . Prevented . | . . Parts Restored . | . . Kills | -11 -10 ------- Run | Yrd Mat Combat Hostiles Destroyed 8 | 1 7 Guns 8 | 1 7 Classes Destroyed 3 | 1 2 Builder 2 | . 2 Watcher 2 | . 2 Grunt 8 | 1 7 Best Kill Streak 3 | 1 3 Combat Bots Only 2 | 1 2 Max Kills in Single Turn 3 | 1 3 Gunslinging . | . . Exploded . | . . Melee . | . . Uniques/NPCs Destroyed . | . . Combat | -11 -10 -------- Run | Yrd Mat Hostile Shots Fired 91 | 9 82 Missed 23 | 2 21 Hits 68 | 7 61 Projectile 68 | 7 61 Critical Strikes 1 | . 1 Damage Taken 867 | 79 788 Core 253 | 22 231 Absorbed by Shields . | . . Regen/Repaired (Parts) 29 | . 29 Core Remaining (%) 91 | 91 . Volleys Fired 58 | 6 52 Largest 2 | 2 2 Hottest 90 | 90 90 Shots Fired 87 | 12 75 Gun 87 | 12 75 Cannon . | . . Launcher . | . . Special . | . . Kinetic 28 | . 28 Thermal 34 | 6 28 Explosive . | . . Electromagnetic 25 | 6 19 Robot Hit Streak 11 | 2 11 Robot Miss Streak 4 | 2 4 Penetration Max . | . . Secondary Targets . | . . Shots Hit Robots 58 | 7 51 Core Hits 27 | 2 25 Critical Kills . | . . Critical Parts Destroyed . | . . Critical Strikes 1 | . 1 Burn 1 | . 1 Melee Attacks . | . . Impact . | . . Slashing . | . . Piercing . | . . Sneak Attacks . | . . Combat Hostiles . | . . Follow-up Attacks . | . . Damage Inflicted 853 | 94 759 Guns 769 | 94 675 Cannons . | . . Explosions 73 | . 73 Melee . | . . Ramming 11 | . 11 Kinetic 275 | . 275 Thermal 309 | 37 272 Explosive . | . . Electromagnetic 258 | 57 201 Impact . | . . Slashing . | . . Piercing . | . . Highest Corruption . | . . Average Corruption . | . . Corruption Purged . | . . Corruption Blocked . | . . Overload Shots . | . . Overflow Damage 3 | . 3 Projectiles . | . . Explosions 3 | . 3 Melee . | . . Knockbacks . | . . Impact . | . . Kinetic . | . . Secondary . | . . Self-Inflicted Damage 17 | . 17 Shots 1 | . 1 Rammed 1 | . 1 Targets Rammed 1 | . 1 Kicked . | . . Crushed . | . . Highest Temperature 329 | 216 329 Average Temperature 143 | 111 149 Received Heat Transfer 489 | 42 447 Effects 1 | . 1 Shutdowns 1 | . 1 Siege Activations . | . . Martial Activations . | . . Shielding Activations . | . . Robots Disrupted . | . . Combat Hostiles . | . . Robots Corrupted . | . . Combat Hostiles . | . . Parts Fried . | . . Impact Corruptions . | . . Robots Melted . | . . Combat Hostiles . | . . Parts Melted 2 | 1 1 Heat Transferred 877 | 111 766 Parts Sabotaged . | . . Parts Stolen . | . . Parts Stripped . | . . Power Chain Reactions 1 | . 1 Alert | -11 -10 ------- Run | Yrd Mat Maximum Alert Level . | . . Low Security (%) 100 | 100 100 Level 1 . | . . Level 2 . | . . Level 3 . | . . Level 4 . | . . Level 5 . | . . High Security . | . . Max Security . | . . Peak Influence 88 | 20 88 Initial . | . . Average 25 | 1 35 Influence Increases 308 | 20 288 Destroy 0b10 Robot/C 160 | 20 140 Destroy 0b10 Robot/NC 20 | . 20 Destroy Leader 44 | . 44 Successful Hack 34 | . 34 Destroy Structure 5 | . 5 Lose Combat Pursuer 45 | . 45 Influence Decreases 250 | 20 230 Time Decay 170 | 20 150 Lost Part 80 | . 80 Squads Dispatched 2 | . 2 Investigation 1 | . 1 Extermination . | . . Reinforcement 1 | . 1 Assault . | . . Garrison . | . . Intercept . | . . Searches Triggered . | . . Construction Impeded . | . . Haulers Reinforced . | . . Active Scanning Responses . | . . Cargo Convoy Interrupts . | . . Stealth | -11 -10 --------- Run | Yrd Mat Distress Signals 1 | . 1 Communications Jammed . | . . Distress Signals . | . . Times Spotted 19 | 1 18 Peak Tracking Total 8 | 1 8 Tactical Retreats 2 | . 2 Traps | -11 -10 ------- Run | Yrd Mat Traps Triggered . | . . Indirectly . | . . Trap Hack Attempts . | . . Triggered . | . . Disarmed . | . . Reprogrammed . | . . Reused . | . . Traps Extracted . | . . Installed . | . . Triggered . | . . Machines | -11 -10 ---------- Run | Yrd Mat Machines Disabled . | . . Max in Single Turn . | . . Machines Repaired . | . . Machines Dismantled . | . . Machines Sabotaged . | . . Overloaded Fab Kills . | . . Hacking | -11 -10 --------- Run | Yrd Mat Machines Accessed 2 | . 2 Terminals . | . . Fabricators . | . . Repair Stations 1 | . 1 Recycling Units 1 | . 1 Scanalyzers . | . . Garrison Access . | . . Total Hacks 5 | . 5 Successful 5 | . 5 Failed . | . . Catastrophic . | . . Database Lockouts . | . . Manual . | . . Terminals . | . . Fabricators . | . . Repair Stations 3 | . 3 Recycling Units 2 | . 2 Scanalyzers . | . . Garrison Access . | . . Terminal Hacks . | . . Fabricator Hacks . | . . Repair Station Hacks 3 | . 3 Scan Component 2 | . 2 Repair 1 | . 1 Recycling Unit Hacks 2 | . 2 Recycle Component 1 | . 1 Process 1 | . 1 Scanalyzer . | . . Garrison Access Hacks . | . . Unauthorized Hacks . | . . Terminals . | . . Fabricators . | . . Repair Stations . | . . Recycling Units . | . . Scanalyzers . | . . Garrison Access . | . . Data Cores Recovered . | . . Used . | . . Hacking Detections 2 | . 2 Full Trace Events 1 | . 1 Feedback Events . | . . Feedback Blocked . | . . Robot Schematics Acquired . | . . Robots Built . | . . Authchips . | . . Time . | . . Total Robot Build Rating . | . . Part Schematics Acquired . | . . Parts Built . | . . Authchips . | . . Time . | . . Total Part Build Rating . | . . Part Studies Acquired . | . . Parts Repaired 1 | . 1 Time 13 | . 13 Parts Recycled 1 | . 1 Recycled Matter 16 | . 16 Retrieved Matter . | . . Retrieved Components . | . . Parts Scanalyzed . | . . Part Schematics Acquired . | . . Parts Damaged . | . . Bothacking | -11 -10 ------------ Run | Yrd Mat Used RIF Installer . | . . Robots Hacked . | . . Non-combat . | . . Combat . | . . Robot Hacks Applied . | . . Relay Couplers Released . | . . Fabnet Peak Effective % . | . . Robots Rewired . | . . Allies Hacked . | . . Hacks Repelled . | . . Allies | -11 -10 -------- Run | Yrd Mat Total Allies . | . . Largest Group . | . . Highest-Rated Group . | . . Highest-Rated Ally . | . . Total Orders . | . . Ally Attacks . | . . Total Damage . | . . Kills . | . . Allies Corrupted . | . . Allies Melted . | . . Intel | -11 -10 ------- Run | Yrd Mat Active Infowar (turns) 256 | . 256 Sensors 256 | . 256 Robot Analysis Total . | . . Derelict Logs Recovered . | . . Drone Launches . | . . Drone Recoveries . | . . Exploration | -11 -10 ------------- Run | Yrd Mat Turns Passed 547 | 157 390 Spaces Moved 350 | 117 233 Core 49 | 35 14 Treads . | . . Legs 61 | . 61 Wheels 240 | 82 158 Hover . | . . Flight . | . . Fastest Speed 50 | 50 50 Average Speed 84 | 71 90 Slowest Speed 120 | 80 120 Overloaded Moves . | . . Propulsion Burnouts . | . . Robots Hopped . | . . Potential Cave-ins . | . . Cave-ins Triggered . | . . Exploration Rate (%) 18 | 8 28 Regions Visited 1 Branch Regions . Pre-discovered Areas . | . . Known Exits Taken . | . . Unknown Exits Taken 1 | 1 . Scrap Searched . | . . Spaces Dug . | . . Terrain Destroyed 5 | . 5 Melee . | . . Projectile . | . . AOE 5 | . 5 Terrain Rammed . | . . Walls Destroyed . | . . Machines Disabled . | . . Actions | -11 -10 --------- Run | Yrd Mat Total 512 | 176 336 Wait 77 | 44 33 Move 349 | 116 233 Hop . | . . Pick Up 9 | 5 4 Fast Attach 8 | 4 4 Attach 6 | 1 5 Detach 1 | . 1 Swap . | . . Drop 3 | . 3 Fire 58 | 6 52 Melee . | . . Ram 1 | . 1 Kick . | . . Crush . | . . Escape Stasis . | . . Rewire . | . . Trap . | . . Miscellaneous . | . . Route ------- -11/Scrapyard -10/Materials (discovered 1 exit: [*Min]) History --------- Turn | Location | Event 2 | -11/Scrapyard | Met Revision 17 76 | -11/Scrapyard | Discovered new exit (range 8) 158 | -11/Scrapyard | Entered Materials 159 | -10/Materials | Met a group of wandering Federalists 312 | -10/Materials | Repaired EM Pulse Gun 334 | -10/Materials | Build established: Mutant 350 | -10/Materials | Discovered new exit (range 13) 476 | -10/Materials | Core integrity fell below 50% 501 | -10/Materials | Core integrity fell below 20% 537 | -10/Materials | Lost 5 parts (2n1u2w) 548 | -10/Materials | Destroyed by G-34 Mercenary with Small Laser Last Messages --------------- 00474_ G-34 Mercenary destroyed. 00476_ R-06 Scavenger collects Hover Unit. 00480_ G-34 Mercenary destroyed. 00483_ R-06 Scavenger collects Wheel. 00488_ Med. Laser destroyed. 00490_ Critical hit (Burn: +37). 00494_ Sensor Array destroyed. 00495_ Power failure, Lgt. Ion Engine shutdown. 00502_ Aluminum Leg destroyed. 00509_ G-47 Trooper destroyed. 00517_ G-34 Mercenary destroyed. 00519_ Acquired 21 matter. 00522_ Acquired 29 matter. 00528_ R-06 Scavenger collects Sml. Laser. 00541_ R-06 Scavenger collects Wheel. 00541_ Lgt. Ion Engine destroyed. 00541_ K-01 Serf cleans the Terminal. 00543_ Assault Rifle destroyed. 00545_ R-06 Scavenger collects Terrain Scanner. 00547_ Acquired Sml. Laser. Map ----- +----------------------------------------------------+ | | | | | ?????????????????????????????????????????????????? | | ?????????????????????????????????????????????????? | | ?????????????????????????????????????????????????? | | ?????????????????????????????????????????????????? | | ?????????????????????????????????????????????????? | | ?????????????????????????????????????????????????? | | ?????????????????????????????????????????????????? | | ?????????????????????????????????????????????????? | | ??????????????????????????????????????????#####??? | | ?????????????????????????????????????????##"""##?? | | ????????????????????????????????????????##"!!!"##? | | ????????????????????????????????????????#"" ""#? | | ????????????????????????????????????????# #? | | ????????????????????????????????????????# < #? | | ????????????????????????????????????????# #? | | ????????????????????????????????????????# #? | | ?????????????????????????????????????????# #?? | | ??????????????????????????????????######### #### | | ??????????????????????????????????# # # | | ??????????????????????????????????# =+ + | | ??????????????????????????????????# % # # | | ?????????#????????????????????????#####+###^ # | | ???????? #####+#########???????### "## # "" | | ????????# k @**#########"" "## ^ # "" | | ?????????? T g *%=%rg m % # "" | | ????????# g r% ==#########" #### | | ????????# ###############???????## #??? | | ??????????????????????????????######## ########? | | ??????????????????????????????# # # #? | | ??????????????????????????????#""" + + """ #? | | ??????????????????????????????#""" # # """ #? | | ??????????????????????????????#""" !# # R" #? | | ??????????????????????????????# # # """ #? | | ??????????????????????????????# # # #? | | ??????????????????????????????###+#### ########? | | ????????????????????????????????# #??# #???????? | | ????????????????????????????????# #??# #???????? | | ????????????????????????????????# ###### #???????? | | ????????????????????????????????#=# # #???????? | | ??????????????????????????# ##### # # #???????? | | ??????????????????????????# / # #???????? | | ??????????????????????????# ##### # # #???????? | | ????????????????????????????????# # # #???????? | | ????????????????????????????#####/# # #???????? | | ????????????????????????????# # # ????????? | | ????????????????????????????# # #?#???????? | | ????????????????????????????# ###### #???????? | | ????????????????????????????# ###### ########? | +----------------------------------------------------+ Best States ------------- Heat Dissipation 25 Energy Generation 10 Energy Capacity 125 Matter Stores 300 Matter Capacity 400 Sight Range 16 Robot Scan Range 14 Terrain Scan Density 10 Evasion (%) 55 Item Schematics ----------------- None Robot Schematics ------------------ None Fabricated ------------ Nothing Repaired ---------- EM Pulse Gun | 35% | -10/Materials Studied --------- None Alien Tech Used ----------------- None Achievements -------------- For Emergencies Only I Have A Map? Organ Harvest There's More Where That Came From Challenges ------------ None Game ------ Seed SubdwellerInertialMatter Manual? 0 Play Time 00:16:09 Cumulative 4.3 hours Start 2026.01.18 @ 01:58:50 End 2026.01.18 @ 02:12:31 Sessions 1 Manual Loads 0 Difficulty Rogue Special Mode None Game No. 7 Rogue 7 Adventurer 0 Explorer 0 Win Type - Total 0 Types 0/0/0/0/0/0/0/0/0/0 Lore% 2 Gallery% 9 Achievement% 6 Wizard Run 0 Options --------- Layout 1 ASCII 0 Keyboard 1 Movement Vi Keybinds 0 Fullscreen 1 Font 24/Proggy Map View 50x35 Zoom Use 0% Tactical HUD 1 Map Filters NONE Filters LOW_CONTRAST(20,20,23) Steam 1 RUN: 94a88986-6e6f-4e23-b0ef-c21565883e01